bitfinex-derivatives/quotes_ETHF0:USTF0_20251211
["timestamp","ask_amount","ask_price","bid_price","bid_amount"]
[1765447668414,1.1321,3199.5,3199.1,0.15627]
[1765447668806,0.7041,3199.2,3199.1,0.15627]
[1765447672620,0.428,3199.5,3199.1,1.11793697]
[1765447672815,0.428,3200.0,3199.9,0.15624]
[1765447673018,1.8406,3200.0,3199.9,0.15624]
[1765447680523,0.428,3200.0,3199.9,0.15624]
[1765447682515,1.8731,3200.0,3199.9,0.15624]
[1765447683028,1.1593,3200.0,3199.9,0.15624]
[1765447684024,1.8731,3200.0,3199.9,0.15624]
[1765447684826,0.428,3200.0,3199.9,0.15624]
[1765447685025,0.4335,3201.0,3200.4,0.78081]
[1765447685231,0.00353587,3200.5,3200.4,5.10654697]
[1765447692534,5.87e-06,3200.5,3200.4,11.10654697]
[1765447694028,5.87e-06,3200.5,3200.4,9.98861]
[1765447694228,5.87e-06,3200.5,3200.4,5.10654697]
[1765447694830,1.87010587,3200.5,3200.4,3.98861]
[1765447695233,1.15630587,3200.5,3200.4,3.98861]
[1765447695634,0.42500587,3200.5,3200.4,3.98861]
[1765447698940,1.15630587,3200.5,3200.4,3.98861]
[1765447699142,0.42500587,3200.5,3200.4,3.98861]
[1765447707340,1.80920587,3200.5,3200.4,3.98861]
[1765447709544,0.42500587,3200.5,3200.4,5.13365267]
[1765447710946,1.11880587,3200.5,3200.4,5.13365267]
[1765447711449,1.84350587,3200.5,3200.4,5.13365267]
[1765447712250,1.11880587,3200.5,3200.4,5.13365267]
[1765447715248,0.42500587,3200.5,3200.4,5.13365267]
[1765447716251,1.11880587,3200.5,3200.4,5.13365267]
[1765447717157,1.11880587,3200.5,3200.4,1.92585267]
[1765447717445,0.42500587,3200.5,3200.4,5.13365267]
[1765447718746,5.87e-06,3200.5,3200.4,4.50905267]
[1765447726650,1.86090587,3200.5,3200.4,3.67571]
[1765447726848,1.86090587,3200.5,3200.4,3.98741]
[1765447727249,1.13620587,3200.5,3200.4,3.98741]
[1765447727449,0.44240587,3200.5,3200.4,3.98741]
[1765447730655,5.87e-06,3200.5,3200.4,3.36401]
[1765447739059,5.87e-06,3200.5,3200.4,0.15621]
[1765447739356,5.87e-06,3200.5,3200.4,3.36401]
[1765447741551,0.44570587,3200.5,3200.4,3.36401]
[1765447741755,1.83520587,3200.5,3200.4,3.67581]
[1765447741957,1.83520587,3200.5,3200.4,3.98761]
[1765447748765,1.13430587,3200.5,3200.4,3.98761]
[1765447751068,0.44570587,3200.5,3200.4,3.98761]
[1765447752365,1.13430587,3200.5,3200.4,3.98761]
[1765447752971,1.13430587,3200.5,3200.4,0.77981]
[1765447753173,1.13430587,3200.5,3200.4,3.98761]
[1765447754674,2.98024854,3200.5,3200.4,3.36401]
[1765447767595,2.98024854,3200.5,3200.4,3.67621]
[1765447767895,2.98024854,3200.5,3200.4,3.36401]
[1765447768697,2.95200611,3200.5,3200.4,3.36401]
[1765447769198,2.95200611,3200.5,3200.4,0.15621]
[1765447771696,1.83520587,3200.5,3200.4,0.46841]
[1765447771996,1.83520587,3200.5,3200.4,0.78051]
[1765447772193,1.83520587,3200.5,3200.4,0.46841]
[1765447775499,1.87500587,3200.5,3200.4,0.78051]
[1765447776097,1.87500587,3200.5,3200.4,0.15621]
[1765447777305,1.87500587,3200.5,3200.4,0.46831]
[1765447781608,1.87500587,3200.5,3200.4,0.15621]
[1765447800126,1.4099,3200.2,3200.1,3.2078]
[1765447800328,2.52670024,3200.2,3200.1,3.2078]
[1765447800926,1.4099,3200.2,3200.1,3.2078]
[1765447801127,1.4099,3200.2,3200.1,3.52]
[1765447802123,1.16810587,3200.5,3200.4,0.6244]
[1765447802329,1.16810587,3200.5,3200.4,0.78061]
[1765447802531,0.44570587,3200.5,3200.4,0.78061]
[1765447802729,5.87e-06,3200.5,3200.4,0.15621]
[1765447803626,1.83810587,3200.5,3200.4,0.46841]
[1765447803829,1.83810587,3200.5,3200.4,0.78061]
[1765447804028,1.13320587,3200.5,3200.4,0.78061]
[1765447804727,0.41080587,3200.5,3200.4,0.78061]
[1765447805635,0.41080587,3200.5,3200.4,3.98841]
[1765447809236,1.13320587,3200.5,3200.4,3.98841]
[1765447809437,0.41080587,3200.5,3200.4,3.98841]
[1765447810436,1.13320587,3200.5,3200.4,3.98841]
[1765447812338,0.41080587,3200.5,3200.4,3.98841]
[1765447813628,1.83810587,3200.5,3200.4,3.67621]
[1765447813828,1.83810587,3200.5,3200.4,3.36401]
[1765447814135,1.4273,3200.1,3200.0,3.2078]
[1765447814340,2.54410024,3200.1,3200.0,3.2078]
[1765447815439,2.54410024,3200.1,3200.0,3.52]
[1765447815640,1.4273,3200.1,3200.0,3.8322]
[1765447816945,2.54410024,3200.1,3200.0,3.52]
[1765447818336,2.54410024,3200.1,3200.0,0.3122]
[1765447824147,1.8645,3200.0,3199.9,0.46844]
[1765447824448,1.8645,3200.0,3199.9,0.15624]
[1765447830752,3.01023616,3200.0,3199.9,0.15624]
[1765447838873,1.8645,3200.0,3199.9,0.46884]
[1765447839065,3.01023616,3200.0,3199.9,0.46884]
[1765447839267,3.01023616,3200.0,3199.9,0.78144]
[1765447842170,3.01023616,3200.0,3199.9,0.46884]
[1765447844969,3.01023616,3200.0,3199.9,0.15624]
[1765447847075,1.4424,3199.8,3199.7,3.2078]
[1765447847370,1.4424,3199.1,3199.0,6.08619159]
[1765447847671,1.8563,3199.0,3198.9,0.62733695]
[1765447848169,1.1352,3199.0,3198.9,1.09613695]
[1765447848368,0.4139,3199.0,3198.9,1.09613695]
[1765447848568,0.4139,3199.0,3198.9,2.24187311]
[1765447848767,2.58813616,3199.4,3199.3,0.9376]
[1765447848974,2.58813616,3199.4,3199.3,0.4688]
[1765447849576,1.4424,3199.4,3199.3,0.4688]
[1765447849773,2.58813616,3199.4,3199.3,0.4688]
[1765447852074,1.4424,3199.2,3199.1,1.09387]
[1765447854573,1.4424,3199.2,3199.1,0.62507]
[1765447855674,1.4424,3199.2,3199.1,0.15627]
[1765447856578,1.4424,3199.2,3199.1,0.62507]
[1765447857477,1.8563,3199.5,3199.4,1.09386]
[1765447857679,1.8563,3199.5,3199.4,0.62506]
[1765447857976,3.00203616,3199.5,3199.4,0.62506]
[1765447858171,1.8563,3199.5,3199.4,0.62506]
[1765447859076,1.8563,3199.5,3199.4,1.09386]
[1765447859579,0.4139,3199.5,3199.4,1.09386]
[1765447862783,1.121,3199.5,3199.4,1.09386]
[1765447865787,1.8595,3199.5,3199.4,1.09386]
[1765447868583,1.8595,3199.5,3199.4,0.62506]
[1765447868787,3.00523616,3199.5,3199.4,0.15626]
[1765447869188,3.00523616,3199.5,3199.4,0.62506]
[1765447871489,3.00523616,3199.5,3199.4,0.15626]
[1765447872191,3.00523616,3199.5,3199.4,0.62506]
[1765447875486,3.00523616,3199.5,3199.4,0.15626]
[1765447875697,6.21303616,3199.5,3199.4,0.15626]
[1765447875886,1.8889,3199.0,3198.9,0.00224695]
[1765447876084,3.03463616,3199.0,3198.9,0.00224695]
[1765447877188,1.8889,3199.0,3198.9,0.62733695]
[1765447878092,1.8889,3199.0,3198.9,1.09613695]
[1765447878293,1.1504,3199.0,3198.9,2.24187311]
[1765447878592,1.8889,3199.0,3198.9,0.62733695]
[1765447878787,1.8889,3199.0,3198.9,0.15853695]
[1765447879094,3.03463616,3199.0,3198.9,0.15853695]
[1765447881793,1.1504,3199.0,3198.9,1.09493695]
[1765447881986,1.8666,3199.0,3198.9,0.15853695]
[1765447882794,1.8666,3199.0,3198.9,0.62673695]
[1765447883094,1.4233,3198.7,3198.6,0.63138589]
[1765447883293,1.4233,3198.7,3198.6,0.78768589]
[1765447883994,1.4233,3198.7,3198.6,0.79048336]
[1765447886396,1.4233,3198.7,3198.6,0.16378336]
[1765447889710,1.8489,3198.5,3198.4,3.2078]
[1765447890003,2.99463616,3198.5,3198.4,3.2078]
[1765447890705,2.99463616,3198.5,3198.4,3.21139018]
[1765447891100,1.8489,3198.5,3198.4,3.36770018]
[1765447891301,1.8489,3198.5,3198.4,4.06110018]
[1765447891503,1.8489,3198.5,3198.4,4.80700018]
[1765447892404,1.8489,3198.5,3198.4,4.06110018]
[1765447893604,1.8489,3198.5,3198.4,0.85330018]
[1765447894603,1.8489,3198.5,3198.4,0.15990018]
[1765447899414,2.96685645,3198.5,3198.4,0.15990018]
[1765447900109,1.4111,3198.2,3198.1,0.00468589]
[1765447900308,2.52905645,3198.2,3198.1,0.00468589]
[1765447900499,1.4111,3197.9,3197.8,0.15634]
[1765447901108,1.41503499,3197.9,3197.8,0.15935073]
[1765447902810,1.41503499,3197.9,3197.8,0.85275073]
[1765447903710,1.41503499,3197.9,3197.8,0.15935073]
[1765447910516,0.00393499,3197.9,3197.8,1.59865073]
[1765447910721,1.41503499,3197.9,3197.8,1.59865073]
[1765447912020,0.68303499,3197.9,3197.8,1.59865073]
[1765447912222,0.00393499,3197.9,3197.8,1.59865073]
[1765447912424,4.6189,3198.1,3198.0,2.03433]
[1765447913331,3.88945492,3198.1,3198.0,2.03433]
[1765447914227,4.62145492,3198.1,3198.0,0.15633]
[1765447915831,1.4111,3197.9,3197.8,0.00301073]
[1765447916030,2.52905645,3197.9,3197.8,0.00301073]
[1765447917028,1.4111,3197.6,3197.5,0.00468589]
[1765447917232,5.73685645,3197.6,3197.0,3.2078]
[1765447917432,5.73685645,3197.6,3196.6,0.1564]
[1765447917433,0.6791,3196.7,3196.6,4.8035]
[1765447917729,1.4111,3196.7,3196.6,4.8035]
[1765447918233,1.4111,3196.7,3196.6,4.80693552]
[1765447918931,1.4111,3196.7,3196.6,3.36763552]
[1765447919234,1.4111,3196.7,3196.6,4.11303552]
[1765447920129,1.4111,3196.7,3196.6,3.36763552]
[1765447920833,1.11795645,3196.9,3196.6,4.79133552]
[1765447921033,2.52785645,3196.9,3196.8,0.7454]
[1765447921233,1.4099,3196.9,3196.8,1.4237]
[1765447921428,1.4099,3196.9,3196.8,0.7454]
[1765447921629,1.4099,3196.9,3196.8,1.4237]
[1765447922241,1.4099,3196.9,3196.8,0.7454]
[1765447922737,1.4099,3196.8,3196.7,0.90179]
[1765447923434,1.4099,3196.8,3196.7,1.58009]
[1765447926236,0.68898589,3197.0,3196.9,1.58008]
[1765447926441,0.00468589,3197.0,3196.9,1.58008]
[1765447926739,0.68898589,3197.0,3196.9,1.58008]
[1765447928245,1.41458589,3197.0,3196.9,1.58008]
[1765447928742,0.68898589,3197.0,3196.9,1.58008]
[1765447930042,1.41458589,3197.0,3196.9,1.58008]
[1765447932638,1.41458589,3197.0,3196.9,0.90178]
[1765447933142,1.41458589,3197.0,3196.9,1.58008]
[1765447934547,1.41458589,3197.0,3196.9,2.69803645]
[1765447934548,0.00468589,3197.0,3196.9,2.69803645]
[1765447934847,0.00468589,3197.0,3196.9,1.58008]
[1765447937350,0.68898589,3197.0,3196.9,1.58008]
[1765447938444,1.41458589,3197.0,3196.9,1.58008]
[1765447939348,0.68898589,3197.0,3196.9,1.58008]
[1765447945251,0.00468589,3197.0,3196.9,1.58008]
[1765447945855,0.75338589,3197.0,3196.9,1.58008]
[1765447946353,0.00468589,3197.0,3196.9,1.58008]
[1765447946858,4.6898,3197.7,3197.6,0.15635]
[1765447947047,4.6898,3197.7,3197.6,0.10841835]
[1765447948461,10.6898,3197.7,3197.6,0.10841835]
[1765447951356,14.3818,3197.7,3197.6,0.10841835]
[1765447954765,15.52928783,3197.7,3197.6,0.10841835]
[1765447955765,12.32148783,3197.7,3197.6,0.10841835]
[1765447955966,15.52928783,3197.7,3197.6,0.10841835]
[1765447959566,9.52928783,3197.7,3197.6,0.10841835]
[1765447963267,5.83728783,3197.7,3197.6,0.10841835]
[1765447967660,1.461,3196.7,3196.5,0.4293]
[1765447967866,1.88188783,3196.7,3196.6,1.37933552]
[1765447968570,1.88188783,3196.7,3196.6,1.53573552]
[1765447968969,2.60848783,3196.7,3196.6,1.53573552]
[1765447971366,0.7344,3196.7,3196.6,1.53573552]
[1765447971570,3.9422,3196.8,3196.7,1.53229]
[1765447971969,4.6688,3197.2,3197.1,1.53227]
[1765447972170,5.81628783,3197.2,3197.1,1.53227]
[1765447972679,5.81628783,3197.2,3197.1,0.84097]
[1765447973877,5.81628783,3197.2,3197.1,0.15637]
[1765447975675,5.81628783,3197.2,3197.1,0.84097]
[1765447975876,5.81628783,3197.2,3197.1,1.53227]
[1765447976180,5.81628783,3197.2,3197.1,0.84097]
[1765447977579,3.9422,3197.2,3197.1,1.53227]
[1765447977977,4.6688,3197.2,3197.1,1.53227]
[1765447978380,5.81628783,3197.2,3197.1,1.53227]
[1765447978979,5.08968783,3197.2,3197.1,1.53227]
[1765447979276,3.9422,3197.2,3197.1,1.53227]
[1765447979781,3.2078,3197.2,3197.1,1.53227]
[1765447979982,5.77678783,3197.6,3197.5,2.02145]
[1765447980183,1.42618589,3198.0,3197.9,1.60404]
[1765447980584,0.00468589,3198.0,3197.9,1.60404]
[1765447980781,0.00468589,3198.0,3197.9,2.75152783]
[1765447981078,0.00468589,3198.0,3197.9,1.60404]
[1765447981280,0.00468589,3198.0,3197.9,2.75152783]
[1765447981478,0.00255492,3198.1,3198.0,2.02143]
[1765447985290,0.00255492,3198.1,3198.0,3.16891783]
[1765447986589,0.73935492,3198.1,3198.0,2.02143]
[1765447991088,0.00255492,3198.1,3198.0,2.02143]
[1765447991688,0.00255492,3198.1,3198.0,3.16891783]
[1765447993495,0.00255492,3198.1,3198.0,2.02143]
[1765447995096,0.73935492,3198.1,3198.0,2.02143]
[1765447995600,3.2078,3198.9,3198.8,1.4477]
[1765447995896,1.4215,3199.3,3199.2,1.54757]
[1765447996198,0.7368,3199.3,3199.2,1.54757]
[1765447996397,1.4777,3199.3,3199.2,1.54757]
[1765447996794,0.73988097,3199.3,3199.2,1.55052271]
[1765447996995,1.48078097,3199.3,3199.2,1.55052271]
[1765447997395,0.73988097,3199.3,3199.2,1.55052271]
[1765447998389,0.00308097,3199.3,3199.2,1.55052271]
[1765448003507,4.6441,3199.7,3199.6,1.53325]
[1765448004506,4.6480196,3199.7,3199.6,1.53325]
[1765448005106,3.9071196,3199.7,3199.6,1.53325]
[1765448007503,4.6480196,3199.7,3199.6,1.53325]
[1765448009598,1.4402196,3199.7,3199.6,1.53325]
[1765448010903,1.4276196,3199.7,3199.6,1.53325]
[1765448012511,0.6993196,3199.7,3199.6,1.53325]
[1765448012707,0.0039196,3199.7,3199.6,2.68073783]
[1765448014814,0.0039196,3199.7,3199.6,1.53325]
[1765448017815,0.7094196,3199.7,3199.6,1.53325]
[1765448018014,0.0039196,3199.7,3199.6,1.53325]
[1765448018212,1.4377196,3199.7,3199.6,1.53325]
[1765448018416,1.4377196,3199.7,3199.6,0.85425]
[1765448020613,0.7094196,3199.7,3199.6,1.55735]
[1765448020915,0.0039196,3199.7,3199.6,1.55735]
[1765448024818,0.7094196,3199.7,3199.6,1.55735]
[1765448025121,1.4377196,3199.7,3199.6,1.55735]
[1765448025313,0.0039196,3199.7,3199.6,1.55735]
[1765448026017,0.7094196,3199.7,3199.6,1.55735]
[1765448026317,0.0039196,3199.7,3199.6,1.55735]
[1765448026715,0.7094196,3199.7,3199.6,1.55735]
[1765448027822,1.4377196,3199.7,3199.6,1.55735]
[1765448028022,1.4377196,3199.7,3199.6,0.85425]
[1765448028321,1.4377196,3199.7,3199.6,1.55735]
[1765448029122,1.4377196,3199.7,3199.6,0.85425]
[1765448029317,1.4377196,3199.7,3199.6,0.15625]
[1765448029725,1.4377196,3199.7,3199.6,0.84275]
[1765448031823,1.4377196,3199.7,3199.6,0.15625]
[1765448032226,5.76223732,3199.7,3199.6,0.15625]
[1765448033425,11.76223732,3199.7,3199.2,0.00295271]
[1765448033729,2.55051772,3199.3,3199.2,0.00295271]
[1765448034832,1.4338,3199.5,3199.4,0.6865]
[1765448035030,1.4338,3199.5,3199.4,1.3896]
[1765448035331,3.9172196,3199.7,3199.6,1.54585]
[1765448035531,3.2117196,3199.7,3199.6,1.54585]
[1765448036626,0.00306806,3200.0,3199.9,1.54584]
[1765448037533,0.0054817,3200.0,3199.9,1.54584]
[1765448043332,0.7109817,3200.0,3199.9,1.54584]
[1765448043637,1.4166817,3200.0,3199.9,1.54584]
[1765448044123,0.7109817,3200.0,3199.9,1.54584]
[1765448045231,1.4166817,3200.0,3199.9,0.15624]
[1765448045833,1.4166817,3200.0,3199.9,0.85104]
[1765448046335,1.4166817,3200.0,3199.9,1.55434]
[1765448047842,1.4166817,3200.0,3199.9,0.85104]
[1765448048238,1.4166817,3200.0,3199.9,1.55434]
[1765448049145,1.5953817,3200.0,3199.9,0.15624]
[1765448049948,1.4166817,3200.0,3199.9,0.15624]
[1765448052346,1.5953817,3200.0,3199.9,0.15624]
[1765448058448,1.4166817,3200.0,3199.9,0.85104]
[1765448059152,1.4166817,3200.0,3199.9,1.55434]
[1765448061250,0.7109817,3200.0,3199.9,1.55434]
[1765448061453,1.4166817,3200.0,3199.9,1.55434]
[1765448062154,0.0054817,3200.0,3199.9,1.55434]
[1765448072961,0.0054817,3200.0,3199.9,4.76214]
[1765448082469,0.0054817,3200.0,3199.9,5.90742102]
[1765448082969,1.6635,3200.3,3200.2,1.58782]
[1765448083169,1.6635,3200.3,3200.2,2.73310102]
[1765448083369,2.51578102,3200.9,3200.8,1.58779]
[1765448083868,2.51982949,3200.9,3200.8,1.58779]
[1765448086069,1.3705,3199.8,3199.7,4.6394]
[1765448086274,2.51578102,3199.8,3199.7,4.79565]
[1765448086472,2.51578102,3199.8,3199.7,0.15625]
[1765448086676,2.51578102,3199.8,3199.7,0.90875]
[1765448087178,2.51578102,3199.8,3199.7,1.58785]
[1765448087672,2.51578102,3199.8,3199.7,0.90875]
[1765448088982,2.51578102,3199.8,3199.7,1.58785]
[1765448089176,2.51578102,3199.8,3199.7,0.90875]
[1765448089575,2.51578102,3199.8,3199.7,1.58785]
[1765448090076,1.83778102,3199.8,3199.7,1.58785]
[1765448090268,0.6925,3199.8,3199.7,1.58785]
[1765448090671,0.00468589,3200.1,3200.0,1.8825]
[1765448091173,0.69718589,3200.1,3200.0,2.03873]
[1765448091568,1.37518589,3200.1,3200.0,2.03873]
[1765448092773,5.72826691,3200.1,3200.0,0.15623]
[1765448093074,4.58298589,3200.1,3200.0,0.15623]
[1765448096478,5.72826691,3200.1,3200.0,0.15623]
[1765448097379,4.58298589,3200.1,3200.0,0.15623]
[1765448097880,5.72826691,3200.1,3200.0,0.15623]
[1765448100586,12.87354793,3200.1,3200.0,0.15623]
[1765448100785,6.87354793,3200.1,3200.0,0.15623]
[1765448100989,1.676,3199.5,3199.4,0.00468589]
[1765448101184,2.82128102,3199.5,3199.4,0.00468589]
[1765448102281,2.82128102,3199.5,3199.2,0.00295271]
[1765448102282,1.4431,3199.3,3199.2,0.00295271]
[1765448102489,2.58838102,3199.3,3199.2,0.00295271]
[1765448109791,0.7127,3198.8,3198.7,1.5735]
[1765448109993,1.4431,3198.8,3198.7,1.5735]
[1765448110593,2.58838102,3198.8,3198.7,1.5735]
[1765448110795,2.58838102,3198.8,3198.7,1.57620151]
[1765448116194,1.14528102,3198.8,3198.7,1.57620151]
[1765448116899,1.89078102,3198.8,3198.7,1.57620151]
[1765448117498,2.57878102,3198.8,3198.7,1.57620151]
[1765448130007,1.4335,3198.8,3198.7,1.57620151]
[1765448130208,2.57878102,3198.8,3198.7,1.57620151]
[1765448130604,1.4335,3198.8,3198.7,1.57620151]
[1765448130803,2.57878102,3198.8,3198.7,1.57620151]
[1765448134213,2.57878102,3198.8,3198.7,0.15900151]
[1765448136703,2.55149151,3198.8,3198.7,0.15900151]
[1765448141306,5.75929151,3198.8,3198.7,0.15900151]
[1765448142715,2.55149151,3198.8,3198.7,0.15900151]
[1765448142917,5.75929151,3198.8,3198.7,0.15900151]
[1765448143216,4.6413,3198.8,3198.7,1.56690151]
[1765448143418,4.6732,3198.8,3198.7,0.15900151]
[1765448145519,4.6732,3198.8,3198.7,0.00270151]
[1765448148123,5.9253,3198.8,3198.7,0.00270151]
[1765448148731,7.04329151,3198.8,3198.7,0.00270151]
[1765448156437,1.4406,3198.5,3198.4,0.00468589]
[1765448156639,2.96549151,3198.5,3198.4,0.00468589]
[1765448157041,1.4406,3197.8,3197.7,0.84714]
[1765448157539,1.44400718,3197.8,3197.7,0.85098725]
[1765448159830,1.44400718,3197.8,3197.7,1.56808725]
[1765448160341,1.44400718,3197.8,3197.7,0.85098725]
[1765448161037,1.44400718,3197.8,3197.7,1.60398725]
[1765448162241,1.44400718,3197.8,3197.7,0.16018725]
[1765448163042,1.44400718,3197.8,3197.7,0.84018725]
[1765448163239,1.44400718,3197.8,3197.7,0.16018725]
[1765448164541,1.44400718,3197.8,3197.7,0.00384725]
[1765448172043,1.7044,3197.5,3197.4,0.00468589]
[1765448172348,0.7083,3196.6,3196.5,1.9755]
[1765448172547,3.2078,3197.0,3196.5,1.9755]
[1765448172740,3.2078,3197.0,3196.9,1.3942]
[1765448172941,8.3439,3197.4,3197.3,1.3942]
[1765448173248,4.6519,3197.4,3197.3,1.3942]
[1765448176851,4.65530718,3197.8,3197.7,1.3942]
[1765448177151,3.21120718,3197.8,3197.7,1.3942]
[1765448178643,3.91950718,3197.8,3197.7,1.3942]
[1765448179050,3.21120718,3197.8,3197.7,1.3942]
[1765448181953,3.91950718,3197.8,3197.7,1.3942]
[1765448183151,4.65530718,3197.8,3197.7,1.3942]
[1765448183348,4.65530718,3197.8,3197.7,0.6872]
[1765448183550,0.7083,3197.1,3197.0,5.02548589]
[1765448183753,2.56209151,3197.5,3197.4,0.6872]
[1765448183954,2.56209151,3197.5,3197.4,1.3942]
[1765448184353,2.56209151,3197.5,3197.4,0.6872]
[1765448184753,2.56209151,3197.5,3197.4,1.3942]
[1765448185256,0.7083,3197.5,3197.4,1.3942]
[1765448185844,4.65530718,3197.8,3197.7,1.3942]
[1765448187958,4.65530718,3197.8,3197.7,1.55054]
[1765448188552,3.21120718,3197.8,3197.7,1.55054]
[1765448188753,0.00340718,3197.8,3197.7,1.55054]
[1765448190758,1.2439794,3198.1,3198.0,1.98653]
[1765448191958,1.24642063,3198.1,3198.0,1.98653]
[1765448193065,0.00244123,3198.1,3198.0,1.98653]
[1765448193762,0.68384123,3198.1,3198.0,1.98653]
[1765448194166,1.38664123,3198.1,3198.0,1.98653]
[1765448194762,0.68384123,3198.1,3198.0,1.98653]
[1765448194962,0.00244123,3198.1,3198.0,1.98653]
[1765448199370,0.68384123,3198.1,3198.0,1.98653]
[1765448200566,1.38664123,3198.1,3198.0,0.60403]
[1765448200770,1.38664123,3198.1,3198.0,0.15633]
[1765448201367,1.38664123,3198.1,3198.0,0.86093]
[1765448202072,1.38664123,3198.1,3198.0,0.15633]
[1765448203171,2.53347538,3198.1,3198.0,0.15633]
[1765448203370,1.38664123,3198.1,3198.0,0.15633]
[1765448203666,2.53347538,3198.1,3198.0,0.15633]
[1765448203871,1.38664123,3198.1,3198.0,0.15633]
[1765448204171,2.53347538,3198.1,3198.0,0.15633]
[1765448204573,1.3842,3197.6,3197.5,3.2078]
[1765448204780,2.53103415,3197.6,3197.5,3.2078]
[1765448204974,2.53103415,3197.6,3197.5,4.51645]
[1765448205175,2.53103415,3197.6,3197.5,5.19435]
[1765448206974,2.53103415,3197.6,3197.5,0.60405]
[1765448208177,2.53103415,3197.6,3197.5,0.15635]
[1765448211078,0.6814,3197.1,3197.0,5.01378589]
[1765448211379,2.53103415,3197.1,3197.0,5.01378589]
[1765448211876,2.53103415,3197.1,3197.0,0.42348589]
[1765448212075,2.53103415,3197.1,3197.0,0.00468589]
[1765448212281,2.53103415,3197.1,3197.0,0.70928589]
[1765448212673,2.53103415,3197.1,3197.0,1.15698589]
[1765448213880,2.53103415,3197.1,3197.0,1.83488589]
[1765448216169,2.53103415,3197.1,3197.0,1.15698589]
[1765448216376,3.6778683,3197.1,3197.0,0.00468589]
[1765448219284,2.53103415,3197.1,3197.0,0.00468589]
[1765448219686,1.3842,3197.1,3197.0,0.70928589]
[1765448219985,2.53103415,3197.1,3197.0,0.00468589]
[1765448221588,2.53103415,3197.1,3197.0,1.15308589]
[1765448221788,2.53103415,3197.1,3197.0,1.88938589]
[1765448222385,2.53103415,3197.1,3197.0,1.15308589]
[1765448222686,2.53103415,3197.1,3197.0,1.88938589]
[1765448223486,2.53103415,3197.1,3197.0,1.15308589]
[1765448223788,5.73883415,3197.1,3197.0,1.15308589]
[1765448226187,6.8856683,3197.1,3197.0,1.15308589]
[1765448226486,5.73883415,3197.1,3197.0,1.15308589]
[1765448228191,5.73883415,3197.1,3197.0,0.00468589]
[1765448228493,5.73883415,3197.1,3197.0,0.70308589]
[1765448230391,2.53103415,3197.1,3197.0,0.70308589]
[1765448230591,5.73883415,3197.1,3197.0,0.70308589]
[1765448231393,5.73883415,3197.1,3197.0,1.15308589]
[1765448231596,5.73883415,3197.1,3197.0,1.88938589]
[1765448232402,6.8856683,3197.1,3197.0,1.15308589]
[1765448232692,6.8856683,3197.1,3197.0,0.00468589]
[1765448234396,5.73883415,3197.1,3197.0,0.00468589]
[1765448234582,5.73883415,3197.1,3197.0,1.13798589]
[1765448234793,5.73883415,3197.1,3197.0,1.87218589]
[1765448242195,3.2078,3197.1,3197.0,2.02856589]
[1765448244189,4.6055,3197.1,3197.0,2.02856589]
[1765448245097,1.3977,3197.1,3197.0,2.02856589]
[1765448247505,1.14683415,3197.2,3197.0,0.59196589]
[1765448247705,2.54453415,3197.2,3197.1,1.4366]
[1765448249808,2.54453415,3197.2,3197.1,1.59297]
[1765448252709,0.7107,3197.2,3197.1,1.59297]
[1765448252914,1.85753415,3197.2,3197.1,1.59297]
[1765448253514,2.60043415,3197.2,3197.1,1.59297]
[1765448254115,1.85753415,3197.2,3197.1,1.59297]
[1765448254304,2.60043415,3197.2,3197.1,0.85877]
[1765448254508,1.4419,3197.0,3196.9,0.00276377]
[1765448254710,3.7355683,3197.0,3196.9,0.00276377]
[1765448256117,2.58873415,3197.0,3196.9,0.69566377]
[1765448256912,1.4419,3197.0,3196.9,1.44146377]
[1765448257112,2.7001,3197.3,3197.2,1.4387]
[1765448257310,1.9572,3197.3,3197.2,1.4387]
[1765448258314,3.84693415,3197.3,3197.2,1.4387]
[1765448258711,3.8190241,3197.3,3197.2,1.4387]
[1765448259115,3.8190241,3197.3,3197.2,0.6929]
[1765448259418,1.4419,3197.2,3197.1,0.84927]
[1765448259711,1.4419,3197.0,3196.9,0.00276377]
[1765448259915,5.7686241,3197.0,3196.9,0.00276377]
[1765448264918,0.3891,3196.5,3195.0,6.05509159]
[1765448265123,1.1189241,3195.3,3195.0,1.1306]
[1765448265314,1.6752148,3197.7,3195.0,1.8764]
[1765448265514,1.1189241,3198.3,3197.5,0.4377]
[1765448265714,1.1189241,3198.0,3197.5,1.1306]
[1765448265914,1.12194033,3198.0,3197.5,1.13280928]
[1765448266116,3.2078,3197.6,3197.5,0.43990928]
[1765448270521,3.2078,3197.6,3197.5,1.87860928]
[1765448271626,3.2078,3197.6,3197.5,0.43990928]
[1765448272027,3.2078,3197.6,3197.5,0.00220928]
[1765448273829,3.25072693,3197.6,3197.0,0.4377]
[1765448274026,3.2078,3197.1,3197.0,0.4377]
[1765448274828,3.25072693,3197.1,3197.0,0.44159976]
[1765448275030,3.25072693,3197.1,3197.0,0.00389976]
[1765448275729,3.25072693,3197.1,3196.5,0.5941]
[1765448275926,3.2078,3196.6,3196.5,0.5941]
[1765448276734,3.2078,3196.6,3196.5,0.4377]
[1765448277032,4.36965103,3196.6,3196.5,0.44007273]
[1765448277232,4.36965103,3196.6,3196.5,0.00237273]
[1765448278227,4.36965103,3196.6,3196.5,0.44007273]
[1765448278837,5.074,3197.5,3197.4,1.3871]
[1765448279135,1.4226,3197.1,3197.0,1.3871]
[1765448280837,1.4226,3197.1,3197.0,1.54348]
[1765448281030,0.6838,3197.1,3197.0,1.76008]
[1765448281225,1.4226,3197.1,3197.0,1.54348]
[1765448284127,5.074,3197.5,3197.4,1.3871]
[1765448285139,5.074,3197.5,3197.4,0.6852]
[1765448285634,1.4226,3197.2,3197.1,1.54347]
[1765448286534,1.4226,3197.2,3197.1,0.15637]
[1765448286738,1.4226,3197.2,3196.9,3.2078]
[1765448286739,1.8662,3197.0,3196.9,3.2078]
[1765448287033,1.4226,3196.6,3196.5,0.84397273]
[1765448287240,1.4226,3196.6,3196.5,1.54587273]
[1765448287739,1.4226,3196.6,3196.5,0.84397273]
[1765448288638,1.4226,3196.6,3196.5,1.54587273]
[1765448290737,1.4226,3196.6,3196.5,0.15877273]
[1765448291237,1.4226,3196.6,3196.5,0.00237273]
[1765448295943,1.3895,3195.7,3195.1,3.2078]
[1765448296247,0.00469359,3195.7,3195.6,4.81685]
[1765448296946,0.00872194,3195.7,3195.6,4.81950363]
[1765448298449,0.00872194,3195.7,3195.6,10.81950363]